Cogmind - Beta 13 @@@ ROGUE MODE // 2024.04.08 @ 18:31:41 Player: Bean Result: Destroyed by G-47 Trooper with Particle Gun Performance ------------- Evolutions (2) 1000 Regions Visited (3) 600 Robots Destroyed (30) 150 Value Destroyed (718) 718 Prototype IDs (1) 20 Alien Tech Used (0) 0 Bonus (2) 2 TOTAL SCORE: 2490 Bonus ------- High Alert Combat Kills 2 Cogmind --------- Core Integrity 0/550 Matter 230/300 Energy 100/100 System Corruption 0% Temperature Cool (9) Movement Core (100) Ox1 Location -8/Materials Parts ------- > --- POWER (1) -------- (None) > --- PROPULSION (3) --- (None) > --- UTILITY (5) ------ Small Storage Unit Improved Targeting Computer > --- WEAPON (2) ------- (None) > --- INVENTORY (8) ---- Structural Scanner Sensor Array Faulty Heavy Particle Gun EM Pulse Cannon Peak State ------------ > --- POWER ------------ Light Nuclear Core > --- PROPULSION ------- Armored Treads Armored Treads Armored Treads > --- UTILITY ---------- Heat Sink Small Storage Unit Sensor Array Improved Targeting Computer Improved Targeting Computer > --- WEAPON ----------- Heavy Particle Gun EM Pulse Cannon > --- INVENTORY -------- Armored Treads Structural Scanner Heavy Armor Plating Light EM Pulse Cannon Grenade Launcher Datajack [Rating: 27] Favorites ----------- Power Light Ion Engine Engine Light Ion Engine Power Core Light Nuclear Core Propulsion Armored Treads Treads Armored Treads Wheel Wheel Flight Unit Flight Unit Utility Improved Targeting Computer Device Heat Sink Storage Small Storage Unit Processor Improved Targeting Computer Protection Heavy Armor Plating Weapon Ion Cannon Energy Gun Medium Laser Energy Cannon Ion Cannon Launcher Grenade Launcher Slashing Weapon Scythe Build | -11 -10 -9 -8 ------- Run | Yrd Mat Mat Mat Slots Evolved 4 | . . 2 2 Power . | . . . . Propulsion 1 | . . . 1 Utility 3 | . . 2 1 Weapon . | . . . . Parts Attached 37 | 6 . 15 16 Power 3 | 1 . 1 1 Engine 2 | 1 . 1 . Core 1 | . . . 1 Reactor . | . . . . Propulsion 10 | 2 . 4 4 Treads 4 | . . . 4 Leg . | . . . . Wheel 4 | 2 . 2 . Hover . | . . . . Flight 2 | . . 2 . Utility 12 | 1 . 7 4 Device 5 | . . 4 1 Storage 1 | 1 . . . Processor 4 | . . 2 2 Hackware . | . . . . Protection 2 | . . 1 1 Artifact . | . . . . Weapon 12 | 2 . 3 7 Energy Gun 3 | 2 . . 1 Energy Cannon 6 | . . 2 4 Ballistic Gun . | . . . . Ballistic Cannon . | . . . . Launcher 2 | . . 1 1 Special Weapon . | . . . . Impact Weapon . | . . . . Slashing Weapon 1 | . . . 1 Piercing Weapon . | . . . . Special Melee Weapon . | . . . . Unidentified Prototypes 1 | . . . 1 Parts Lost 17 | . . 5 12 Power 2 | . . 1 1 Propulsion 5 | . . 1 4 Utility 4 | . . 1 3 Weapon 6 | . . 2 4 Highest Loss Streak 8 | . . 2 8 To Critical Strikes . | . . . . Average Slot Usage (%) 91 | . 85 86 95 Engine 6 | . 14 11 1 Core 3 | . . . 5 Treads 13 | . . . 25 Wheel 8 | . 28 13 . Flight 2 | . . 8 . Device 12 | . . 7 18 Storage 10 | . 14 11 9 Processor 12 | . . 10 17 Protection 1 | . . 3 . Energy Gun 4 | . 28 . . Energy Cannon 13 | . . 19 14 Launcher 1 | . . . 2 Naked Turns . | . . . . Heaviest Build 36 | 12 12 36 22 Greatest Support 60 | 20 20 32 60 Greatest Overweight (x) 7 | . . 4 7 Average Overweight (x) . | . . . . Largest Inventory Capacity 8 | 8 8 8 8 Average Capacity 7 | 7 8 8 8 Most Carried 8 | 3 2 8 8 Average Carried 5 | 1 1 6 5 Final Capacity 8 | 8 8 8 8 Final Carried 4 | 1 2 3 4 Class Distribution -------------------- 94% | Mutant 5% | Scavenger-Mutant Dominant Class ---------------- Mutant | -10/Materials Mutant | -9/Materials Mutant | -8/Materials Resources | -11 -10 -9 -8 ----------- Run | Yrd Mat Mat Mat Matter Collected 466 | 247 13 102 104 Remotely . | . . . . Salvage Created 815 | . 12 424 379 Parts 55 | . 1 32 22 Haulers Intercepted . | . . . . Recyclers Shooed 4 | . . 1 3 Parts Field Recycled . | . . . . Retrieved Matter . | . . . . Parts Self-Destructed . | . . . . Prevented . | . . . . Kills | -11 -10 -9 -8 ------- Run | Yrd Mat Mat Mat Combat Hostiles Destroyed 24 | . . 12 12 Melee 3 | . . . 3 Cannons 12 | . . 11 1 AOE 9 | . . 1 8 Classes Destroyed 8 | . 1 5 2 Builder 1 | . . 1 . Recycler 2 | . . 2 . Operator 1 | . 1 . . Watcher 2 | . . 1 1 Swarmer 12 | . . 7 5 Grunt 9 | . . 5 4 Brawler 1 | . . . 1 Sentry 2 | . . . 2 Best Kill Streak 8 | . 1 4 8 Combat Bots Only 8 | . . 4 8 Max Kills in Single Turn 6 | . 1 1 6 Gunslinging . | . . . . Exploded 6 | . . 1 6 Melee 1 | . . . 1 Uniques/NPCs Destroyed . | . . . . Combat | -11 -10 -9 -8 -------- Run | Yrd Mat Mat Mat Hostile Shots Fired 365 | . . 106 259 Missed 98 | . . 23 75 Damage Taken 3556 | . . 946 2610 Core 759 | . . 206 553 Absorbed by Shields . | . . . . Core Remaining (%) 82 | 100 100 48 . Volleys Fired 57 | . 5 41 11 Largest 2 | . 2 2 2 Hottest 131 | . 100 120 131 Shots Fired 104 | . 10 75 19 Gun 10 | . 10 . . Cannon 88 | . . 73 15 Launcher 6 | . . 2 4 Special . | . . . . Kinetic . | . . . . Thermal 92 | . 10 73 9 Explosive 6 | . . 2 4 Electromagnetic 6 | . . . 6 Robot Hit Streak 16 | . 3 6 16 Robot Miss Streak 6 | . 3 6 1 Penetration Max . | . . . . Secondary Targets . | . . . . Shots Hit Robots 60 | . 5 35 20 Core Hits 36 | . 2 16 18 Critical Kills . | . . . . Critical Parts Destroyed . | . . . . Critical Strikes . | . . . . Melee Attacks 10 | . . . 10 Impact . | . . . . Slashing 10 | . . . 10 Piercing . | . . . . Sneak Attacks . | . . . . Combat Hostiles . | . . . . Follow-up Attacks . | . . . . Damage Inflicted 2294 | . 61 1023 1210 Guns 61 | . 61 . . Cannons 1031 | . . 757 274 Explosions 898 | . . 243 655 Melee 281 | . . . 281 Ramming 23 | . . 23 . Kinetic . | . . . . Thermal 1211 | . 61 930 220 Explosive 605 | . . 70 535 Electromagnetic 174 | . . . 174 Impact . | . . . . Slashing 281 | . . . 281 Piercing . | . . . . Highest Corruption . | . . . . Average Corruption . | . . . . Corruption Purged . | . . . . Corruption Blocked . | . . . . Overload Shots . | . . . . Overflow Damage 135 | . . 132 3 Projectiles 19 | . . 19 . Explosions 116 | . . 113 3 Melee . | . . . . Knockbacks . | . . . . Impact . | . . . . Kinetic . | . . . . Secondary . | . . . . Self-Inflicted Damage 151 | . . 111 40 Shots 2 | . . 1 1 Rammed 4 | . . 4 . Targets Rammed 4 | . . 4 . Kicked . | . . . . Crushed . | . . . . Highest Temperature 508 | . 98 508 94 Average Temperature 160 | . 44 197 35 Received Heat Transfer 1245 | . . 174 1071 Effects 14 | . . 14 . Shutdowns 2 | . . 2 . Energy Bleed 2 | . . 2 . Interference 4 | . . 4 . Short Circuit 1 | . . 1 . Damage (major) 4 | . . 4 . Damage (core) 1 | . . 1 . Siege Activations . | . . . . Robots Corrupted . | . . . . Combat Hostiles . | . . . . Parts Fried 1 | . . . 1 Impact Corruptions . | . . . . Robots Melted . | . . . . Combat Hostiles . | . . . . Parts Melted 3 | . 1 2 . Heat Transferred 1804 | . 185 1321 298 Parts Sabotaged . | . . . . Parts Stolen . | . . . . Parts Stripped . | . . . . Power Chain Reactions 1 | . . . 1 Alert | -11 -10 -9 -8 ------- Run | Yrd Mat Mat Mat Peak Influence 421 | . 39 421 309 Initial 44 | . . 16 44 Average 84 | . 29 177 49 Maximum Alert Level 2 | . . 2 1 Low Security (%) 84 | 100 100 57 95 Level 1 14 | . . 39 4 Level 2 1 | . . 3 . Level 3 . | . . . . Level 4 . | . . . . Level 5 . | . . . . High Security . | . . . . Max Security . | . . . . Squads Dispatched 5 | . 1 3 1 Investigation 2 | . . 1 1 Extermination . | . . . . Reinforcement 3 | . 1 2 . Assault . | . . . . Garrison . | . . . . Intercept . | . . . . Searches Triggered . | . . . . Construction Impeded 1 | . . 1 . Haulers Reinforced . | . . . . Active Scanning Responses . | . . . . Cargo Convoy Interrupts . | . . . . Stealth | -11 -10 -9 -8 --------- Run | Yrd Mat Mat Mat Distress Signals 3 | . . 3 . Communications Jammed . | . . . . Distress Signals . | . . . . Times Spotted 47 | . 2 21 24 Peak Tracking Total 15 | . 1 6 15 Tactical Retreats 2 | . . 1 1 Traps | -11 -10 -9 -8 ------- Run | Yrd Mat Mat Mat Traps Triggered . | . . . . Indirectly . | . . . . Trap Hack Attempts . | . . . . Triggered . | . . . . Disarmed . | . . . . Reprogrammed . | . . . . Reused . | . . . . Traps Extracted . | . . . . Installed . | . . . . Triggered . | . . . . Objects Rigged 3 | . . 3 . Machines | -11 -10 -9 -8 ---------- Run | Yrd Mat Mat Mat Machines Disabled 4 | . . 2 2 Max in Single Turn 2 | . . 2 1 Machines Repaired . | . . . . Machines Dismantled . | . . . . Machines Sabotaged . | . . . . Overloaded Fab Kills . | . . . . Hacking | -11 -10 -9 -8 --------- Run | Yrd Mat Mat Mat Machines Accessed 13 | . 4 6 3 Terminals 11 | . 3 6 2 Fabricators . | . . . . Repair Stations . | . . . . Recycling Units 1 | . 1 . . Scanalyzers 1 | . . . 1 Garrison Access . | . . . . Total Hacks 30 | . 5 17 8 Successful 21 | . 3 13 5 Failed 9 | . 2 4 3 Catastrophic . | . . . . Database Lockouts . | . . . . Manual 22 | . 5 14 3 Terminals 26 | . 4 17 5 Fabricators . | . . . . Repair Stations . | . . . . Recycling Units 1 | . 1 . . Scanalyzers 3 | . . . 3 Garrison Access . | . . . . Terminal Hacks 8 | . 1 5 2 Record 2 | . . 2 . Alert Level 1 | . . . 1 Unreport Threat 1 | . . 1 . Locate Traps 2 | . . 2 . Recall Investigation 1 | . . . 1 Recall Reinforcements 1 | . 1 . . Fabricator Hacks . | . . . . Repair Station Hacks . | . . . . Recycling Unit Hacks . | . . . . Scanalyzer 1 | . . . 1 Insert Component 1 | . . . 1 Garrison Access Hacks . | . . . . Unauthorized Hacks 12 | . 2 8 2 Terminals 12 | . 2 8 2 Track 1 | . . 1 . Assimilate 1 | . 1 . . Botnet 9 | . 1 6 2 Detonate 1 | . . 1 . Fabricators . | . . . . Repair Stations . | . . . . Recycling Units . | . . . . Scanalyzers . | . . . . Garrison Access . | . . . . Data Cores Recovered . | . . . . Used . | . . . . Hacking Detections 4 | . . 3 1 Full Trace Events 2 | . . 1 1 Feedback Events . | . . . . Feedback Blocked . | . . . . Robot Schematics Acquired . | . . . . Robots Built . | . . . . Authchips . | . . . . Time . | . . . . Total Robot Build Rating . | . . . . Part Schematics Acquired . | . . . . Parts Built . | . . . . Authchips . | . . . . Time . | . . . . Total Part Build Rating . | . . . . Parts Repaired . | . . . . Time . | . . . . Parts Recycled . | . . . . Recycled Matter . | . . . . Retrieved Matter . | . . . . Retrieved Components . | . . . . Parts Scanalyzed 1 | . . . 1 Part Schematics Acquired . | . . . . Parts Damaged . | . . . . Bothacking | -11 -10 -9 -8 ------------ Run | Yrd Mat Mat Mat Used RIF Installer . | . . . . Robots Hacked . | . . . . Non-combat . | . . . . Combat . | . . . . Robot Hacks Applied . | . . . . Relay Couplers Released . | . . . . Fabnet Peak Effective % . | . . . . Robots Rewired . | . . . . Allies Hacked . | . . . . Hacks Repelled . | . . . . Allies | -11 -10 -9 -8 -------- Run | Yrd Mat Mat Mat Total Allies . | . . . . Largest Group . | . . . . Highest-Rated Group . | . . . . Highest-Rated Ally . | . . . . Total Orders . | . . . . Ally Attacks . | . . . . Total Damage . | . . . . Kills . | . . . . Allies Corrupted . | . . . . Allies Melted . | . . . . Intel | -11 -10 -9 -8 ------- Run | Yrd Mat Mat Mat Robot Analysis Total . | . . . . Derelict Logs Recovered . | . . . . Drone Launches . | . . . . Drone Recoveries . | . . . . Exploration | -11 -10 -9 -8 ------------- Run | Yrd Mat Mat Mat Turns Passed 1605 | 46 221 487 851 Spaces Moved 971 | 43 256 255 417 Core 5 | 4 . . 1 Treads 410 | . . . 410 Legs . | . . . . Wheels 489 | 39 256 188 6 Hover . | . . . . Flight 67 | . . 67 . Fastest Speed 50 | 50 80 80 100 Average Speed 130 | 77 80 128 169 Slowest Speed 400 | 80 80 357 400 Overloaded Moves . | . . . . Propulsion Burnouts . | . . . . Robots Hopped . | . . . . Cave-ins Triggered . | . . . . Exploration Rate (%) 25 | 3 44 28 26 Regions Visited 3 Branch Regions . Pre-discovered Areas . | . . . . Known Exits Taken . | . . . . Unknown Exits Taken 3 | 1 1 1 . Scrap Searched . | . . . . Spaces Dug . | . . . . Terrain Destroyed 86 | . . 58 28 Melee . | . . . . Projectile 12 | . . 10 2 AOE 74 | . . 48 26 Terrain Rammed . | . . . . Walls Destroyed . | . . . . Machines Disabled . | . . . . Actions | -11 -10 -9 -8 --------- Run | Yrd Mat Mat Mat Total 1189 | 55 261 342 531 Wait 52 | . . 2 50 Move 968 | 42 255 254 417 Hop . | . . . . Pick Up 40 | 7 1 16 16 Fast Attach . | . . . . Attach 31 | 6 . 11 14 Detach 4 | . . 1 3 Swap 6 | . . 4 2 Drop 17 | . . 9 8 Fire 57 | . 5 41 11 Melee 10 | . . . 10 Ram 4 | . . 4 . Kick . | . . . . Crush . | . . . . Escape Stasis . | . . . . Rewire . | . . . . Trap . | . . . . Miscellaneous . | . . . . Route ------- -11/Scrapyard -10/Materials -9/Materials -8/Materials History --------- Turn | Location | Event 21 | -11/Scrapyard | Discovered new exit (range 16) 47 | -11/Scrapyard | Entered Materials 204 | -10/Materials | Discovered new exit (range 6) 268 | -10/Materials | Entered another Materials area 268 | -9/Materials | Evolved 2 slots: Utility x2 305 | -9/Materials | Build established: Mutant 712 | -9/Materials | Core integrity fell below 50% 739 | -9/Materials | Discovered new exit (range 15) 755 | -9/Materials | Entered another Materials area 755 | -8/Materials | Evolved 2 slots: Propulsion x1, Utility x1 1544 | -8/Materials | Destroyed 8 combat bots 1560 | -8/Materials | Lost 4 parts (1p1n2w) 1562 | -8/Materials | Core integrity fell below 50% 1596 | -8/Materials | Core integrity fell below 20% 1606 | -8/Materials | Destroyed by G-47 Trooper with Particle Gun Last Messages --------------- G-47 Trooper destroyed. Grenade Launcher destroyed. Critical hit (Burn: +37). Arm. Treads destroyed. U-05 Engineer builds a Wall. Arm. Treads destroyed. Acquired Scythe. Critical hit (Burn: +37). Hvy. Particle Cannon destroyed. Y-45 Defender destroyed. Critical hit (Burn: +37). Arm. Treads destroyed. Heat Sink destroyed. G-47 Trooper destroyed. Y-45 Defender destroyed. Acquired 75 matter. Imp. Targeting Computer destroyed. Hvy. Armor Plating destroyed. Critical hit (Burn: +37). Scythe destroyed. Map ----- +----------------------------------------------------+ | ???????????? * # ###?## "##???????? | | ????????????????##% ####+#####?## "%##???????? | | ????????????????##* = ##### "##???????? | | ????????????????## [% ##### ##???????? | | ????????????????## "#### ##???????? | | ??????????? # ??## % ##???????? | | ??????????? # ??## #####"""####"## ##???????? | | ??????????? # ??## ### ######## ## # ##???????? | | ???????????## ??## ### ##?###### " # ##???????? | | ????????##### ??## ### ###???#### T # ##???????? | | ?????######## #### ########?????## " # ##???????? | | ?????##### #### #######??????## + ##???????? | | ?????##"## # # ##???????????## # ##???????? | | ?????## /%=## ##???????????## # ##???????? | | ?????## ##???????????## # ##???????? | | ?????## "" ####???????????## # ##???????? | | ?????## = ####???????????####### ##???????? | | ?????## " =% ###???????????####### ##???????? | | ?????T# "" [## ##???????????????## # ???????? | | ???? ## """% * # ########????????## # ???????? | | ???? # %% # T # #????????## # ???????? | | ???? ###### # # # !! !#????????## # ???????? | | ?????##### + !!#/ !!g #????????## # ???????? | | ????????## # ! # ! g #????????## # ???????? | | ???????? + # # [*Y #????????## # ???????? | | ???????? # """ #= # !*@!g#????????## # ???????? | | ???????? # """ ###/####g#/#???####### ########## | | ???????? # """ !=[[########### ### | | ???????? + ^ %!! !### # ### | | ???????? # [[* !## # ### | | ???????? # """ ####### !## # ##### | | ???????? # """ # ????# !## # ########## | | ?????????# """ # ????# !## + | | ?????????# # ????+ !### ! # | | ?????????# + ????# ###### # | | ?????????? # ????# #???## # ######+## | | ?????????? #?????# #???## # # # | | ?????????? /!! #?????# #???####### # # | | ?????????# /!! #?????# #???####### # "" "" # | | ?????????? /!! #?????# #????????## # ""S"" # | | ??????????? ??????# #????????## # """" # | | ????????????? ??????# #????????## ######### | | ??????????????? ??????# #????????## | | ????????????????????????? #???####### ! | | ????????????????????????? #???####### | | ????????????????????????? ????## # ##+ | | ????????????????????????????????## T # # | | ????????????????????????????????## # # | | ????????????????????????????????## ! # # | | ????????????????????????????????## + # | +----------------------------------------------------+ Best States ------------- Heat Dissipation 41 Energy Generation 14 Energy Capacity 160 Matter Stores 300 Matter Capacity 300 Sight Range 16 Robot Scan Range 14 Terrain Scan Density 10 Armor Coverage 600 Evasion (%) 44 Targeting Accuracy 12 Recoil Reduction 3 Item Schematics ----------------- None Robot Schematics ------------------ None Fabricated ------------ Nothing Alien Tech Used ----------------- None Achievements -------------- GoHome() Quick And Dirty Challenges ------------ None Game ------ Seed SurgeFlyingCloak Manual? 0 Play Time 00:24:47 Cumulative 8.5 hours Start 2024.04.07 @ 20:43:26 End 2024.04.08 @ 18:31:41 Sessions 2 Manual Loads 0 Difficulty Rogue Special Mode None Game No. 20 Rogue 20 Adventurer 0 Explorer 0 Win Type - Total 0 Types 0/0/0/0/0/0/0/0/0 Lore% 16 Gallery% 19 Achievement% 17 Wizard Run 0 Options --------- Layout 2 ASCII 0 Keyboard 0 Movement Numpad Keybinds 0 Fullscreen 1 Font 24/Smallcaps Map View 50x44 Zoom Use 0% Tactical HUD 0 Map Filters NONE Filters NONE Steam 1 RUN: bc4495b0-0083-4a1c-9d2d-1baba1bf9cdf